bitfinex/quotes_ETHUSD_20210401
["timestamp","ask_amount","ask_price","bid_price","bid_amount"]
[1617286037328,0.4,1928.1,1927.8,0.09406894]
[1617286037529,0.39,1928.0,1927.8,0.09406894]
[1617286037737,0.39,1928.0,1926.7,0.8998]
[1617286037738,0.38,1927.6,1927.3,0.09406894]
[1617286038035,0.38,1927.9,1927.1,0.09406894]
[1617286038036,7.7875,1927.9,1927.1,0.09406894]
[1617286038227,8.10684306,1928.0,1927.1,0.09406894]
[1617286038228,8.442,1927.7,1927.1,0.09406894]
[1617286038428,8.442,1927.7,1927.0,0.39]
[1617286038630,0.39,1927.6,1927.0,0.39]
[1617286039160,0.4,1927.5,1927.0,0.39]
[1617286039360,6.16553306,1927.9,1927.0,0.39]
[1617286039559,6.16553306,1927.9,1926.8,0.09406894]
[1617286039560,3.89389,1927.9,1927.3,0.4]
[1617286039772,11.12692794,1928.0,1927.4,0.41]
[1617286040062,11.12692794,1928.0,1927.2,0.09406894]
[1617286040261,0.4,1927.9,1927.3,0.39]
[1617286040895,5.01,1927.9,1927.5,0.4]
[1617286041299,6.11692794,1928.0,1927.5,0.4]
[1617286042102,0.4,1927.9,1927.3,0.09406894]
[1617286042303,13.90412794,1928.0,1927.3,0.09406894]
[1617286042304,0.4,1927.6,1927.3,0.09406894]
[1617286042501,0.4,1927.6,1926.6,30.2494]
[1617286042502,0.53,1927.5,1926.7,0.09406894]
[1617286042802,0.53,1927.5,1926.8,0.39]
[1617286042803,0.14,1927.1,1926.8,0.39]
[1617286043004,0.14,1927.1,1926.6,15.0215]
[1617286043005,6.26072538,1927.0,1926.6,15.0215]
[1617286043208,20.96,1926.7,1926.6,15.0215]
[1617286043404,28.7828,1926.7,1926.6,15.0215]
[1617286043601,28.7828,1926.7,1926.6,1.0]
[1617286043901,8.2328,1926.7,1926.6,1.0]
[1617286044101,7.8228,1926.7,1926.6,1.0]
[1617286044606,0.14,1926.7,1926.6,1.38]
[1617286044805,11.67261471,1927.0,1926.6,1.66]
[1617286045003,0.53,1926.9,1926.6,1.0]
[1617286045203,2.78899498,1926.9,1926.6,1.0]
[1617286045406,3.68099193,1926.9,1926.6,1.0]
[1617286045706,1.93643797,1926.9,1926.6,1.0]
[1617286045906,5.01,1926.8,1926.6,1.0]
[1617286046107,14.29226,1926.7,1926.6,1.0]
[1617286046304,7.79226,1926.7,1926.6,1.0]
[1617286047126,14.84226,1926.7,1926.6,1.0]
[1617286047327,15.22226,1926.7,1926.6,1.0]
[1617286047930,18.4,1926.6,1925.7,0.09406894]
[1617286048133,0.38,1926.2,1925.7,0.09406894]
[1617286048336,0.4,1926.1,1925.7,0.09406894]
[1617286048531,8.5134,1926.2,1925.7,0.4]
[1617286048532,8.1334,1926.2,1925.7,0.4]
[1617286049232,8.1334,1926.2,1925.6,1.0]
[1617286049233,5.01,1926.0,1925.6,1.0]
[1617286049484,7.25893016,1926.0,1925.6,1.0]
[1617286049687,5.01,1925.9,1925.6,1.0]
[1617286049881,5.01,1925.8,1925.6,1.0]
[1617286050284,4.06553277,1925.9,1925.6,1.0]
[1617286050484,5.5519505,1926.0,1925.6,1.0]
[1617286050682,5.01,1925.8,1925.6,1.0]
[1617286050889,5.01,1925.8,1925.6,1.41]
[1617286051181,11.912,1925.8,1925.6,1.41]
[1617286051490,11.912,1925.8,1925.6,1.0]
[1617286051683,16.36769126,1925.8,1925.6,1.0]
[1617286051983,18.42184714,1925.8,1925.6,1.0]
[1617286052185,12.36,1925.7,1925.6,1.0]
[1617286052387,15.06191844,1925.8,1925.6,1.0]
[1617286052585,14.67191844,1925.8,1925.6,1.0]
[1617286052786,13.02184714,1925.8,1925.6,1.0]
[1617286052985,13.02184714,1925.8,1925.6,1.39]
[1617286053185,13.02184714,1925.8,1925.6,1.0]
[1617286053397,4.19613,1925.7,1925.6,1.0]
[1617286053694,5.48316831,1925.7,1925.6,1.0]
[1617286053888,11.73316831,1925.7,1925.6,1.0]
[1617286054089,4.19613,1925.7,1925.6,1.0]
[1617286055212,11.75613,1925.7,1925.6,1.0]
[1617286055414,11.34613,1925.7,1925.6,1.0]
[1617286055614,4.19613,1925.7,1925.6,1.0]
[1617286055815,12.02184714,1925.8,1925.6,1.0]
[1617286057334,12.00665914,1925.8,1925.6,1.41]
[1617286058134,12.00665914,1925.8,1925.6,1.0]
[1617286058135,12.39665914,1925.8,1925.6,1.0]
[1617286058340,12.00665914,1925.8,1925.6,1.0]
[1617286058738,4.06561346,1926.2,1925.7,27.8]
[1617286058937,4.06561346,1926.2,1925.9,7.79104]
[1617286059139,3.9,1926.4,1926.1,0.39]
[1617286059539,3.9,1926.4,1926.1,9.4814]
[1617286059857,3.9,1926.4,1926.3,12.84]
[1617286060158,3.9,1926.4,1926.3,12.45]
[1617286060459,3.9,1926.4,1926.2,0.9048]
[1617286060757,3.9,1926.4,1926.2,1.3048]
[1617286061062,6.11881104,1926.9,1926.3,12.08]
[1617286061257,6.11881104,1926.9,1926.5,0.39]
[1617286061460,6.11881104,1926.9,1926.3,11.7]
[1617286061656,6.11881104,1926.9,1926.4,0.38]
[1617286062579,6.11881104,1926.9,1926.6,0.39]
[1617286062980,6.11881104,1926.9,1926.3,11.7]
[1617286063282,5.01,1926.7,1926.4,0.4]
[1617286063481,11.12881104,1926.9,1926.4,0.4]
[1617286063881,2.0776925,1926.8,1926.4,0.4]
[1617286064083,5.41,1926.7,1926.1,0.4]
[1617286064684,2.0776925,1926.8,1926.2,0.39]
[1617286064985,10.2495425,1926.8,1926.2,0.39]
[1617286065216,2.4576925,1926.8,1926.2,0.39]
[1617286065410,2.0776925,1926.8,1926.4,0.41]
[1617286065716,6.11881104,1926.9,1926.4,0.41]
[1617286066019,20.76881104,1926.9,1926.0,0.09406894]
[1617286066219,20.76881104,1926.9,1925.8,0.09406894]
[1617286066220,3.89621,1926.7,1925.8,0.09406894]
[1617286066413,2.0779754,1926.4,1925.8,0.09406894]
[1617286066613,2.0779754,1926.4,1925.7,0.09406894]
[1617286066922,2.0779754,1926.4,1926.0,0.4]
[1617286067937,2.0779754,1926.4,1925.7,0.09406894]
[1617286068134,2.0779754,1926.4,1925.9,0.39]
[1617286068435,2.0279754,1926.4,1926.0,0.39]
[1617286069041,2.0279754,1926.4,1926.2,0.38]
[1617286069435,2.0279754,1926.4,1926.3,0.39]
[1617286070860,2.0279754,1926.4,1926.0,7.79062]
[1617286071065,2.0279754,1926.4,1925.9,0.41]
[1617286071262,2.0279754,1926.4,1926.2,0.4]
[1617286071471,2.0279754,1926.4,1926.3,0.4]
[1617286071763,2.5974693,1926.8,1926.3,0.4]
[1617286072364,15.7987693,1926.8,1926.2,0.41]
[1617286072564,0.4,1926.7,1926.2,0.41]
[1617286073203,0.38,1926.4,1925.9,10.38705]
[1617286073404,0.38,1926.5,1925.9,10.38705]
[1617286073703,2.0778506,1926.3,1926.2,0.39]
[1617286074106,2.0778506,1926.3,1925.7,0.09406894]
[1617286074803,2.0778506,1926.3,1925.8,0.38]
[1617286075202,2.0778506,1926.3,1925.8,8.17169]
[1617286075404,2.0778506,1926.3,1925.9,0.38]
[1617286075818,2.0778506,1926.3,1926.0,0.4]
[1617286076015,2.0778506,1926.3,1926.2,0.38]
[1617286076416,4.06457928,1926.6,1926.2,0.38]
[1617286076617,0.41,1926.8,1926.2,0.38]
[1617286076812,1.08401187,1927.3,1926.3,8.61406894]
[1617286077112,0.41,1927.2,1926.3,8.61406894]
[1617286077912,7.78939,1927.2,1926.7,0.39]
[1617286078112,10.3860375,1927.2,1926.7,0.39]
[1617286078343,3.89482,1927.1,1926.7,0.39]
[1617286078541,2.5966475,1927.2,1926.7,0.39]
[1617286080342,6.50780543,1927.3,1926.7,0.39]
[1617286080541,6.50780543,1927.3,1926.7,0.48406894]
[1617286081164,6.50780543,1927.3,1926.7,0.39]
[1617286081364,6.11780543,1927.3,1926.7,0.39]
[1617286081564,6.11780543,1927.3,1926.7,8.17767]
[1617286081769,6.11780543,1927.3,1926.8,0.09406894]
[1617286081964,6.11780543,1927.3,1927.0,0.4]
[1617286082166,6.11780543,1927.3,1927.0,7.5392]
[1617286082564,2.9763574,1927.5,1927.0,7.5392]
[1617286082765,2.5963574,1927.5,1927.0,7.5392]
[1617286082963,2.5963574,1927.5,1927.0,15.32594]
[1617286083887,2.5963574,1927.5,1927.0,7.5392]
[1617286084291,0.41,1927.3,1927.0,7.1392]
[1617286084489,6.4902974,1927.5,1927.0,7.1392]
[1617286084789,6.9002974,1927.5,1927.0,7.1392]
[1617286085288,3.89378,1927.4,1927.0,7.1392]
[1617286085589,3.89378,1927.4,1927.0,7.5192]
[1617286085792,2.5963574,1927.5,1927.0,7.5192]
[1617286086709,2.5963574,1927.5,1927.0,15.30566]
[1617286086925,2.5963574,1927.5,1927.2,0.4]
[1617286087112,4.06307827,1927.8,1927.3,0.4]
[1617286087413,1.81263541,1927.9,1927.4,8.98876894]
[1617286087714,1.0,1927.9,1927.5,0.39]
[1617286087910,1.0,1927.9,1927.5,0.48406894]
[1617286088859,1.0,1927.9,1927.5,12.32845894]
[1617286090367,1.0,1927.9,1927.8,20.48]
[1617286090569,1.0,1927.9,1927.8,30.3764]
[1617286091165,1.0,1927.9,1927.8,29.9964]
[1617286091664,1.0,1927.9,1927.8,3.12]
[1617286091867,1.0,1927.9,1927.8,10.15]
[1617286092266,1.0,1927.9,1927.8,17.93289]
[1617286092869,0.0001,1927.9,1927.8,34.55199]
[1617286093072,0.0001,1927.9,1927.8,33.35199]
[1617286093274,0.0001,1927.9,1927.8,39.89199]
[1617286094287,0.99274,1928.4,1927.9,21.35]
[1617286094496,0.99274,1928.4,1928.0,0.09406894]
[1617286094691,0.9168,1928.4,1928.0,0.47406894]
[1617286094887,0.9168,1928.4,1928.0,0.46457894]
[1617286095287,0.9168,1928.4,1928.1,7.78204]
[1617286095488,0.9168,1928.4,1928.0,0.46457894]
[1617286095687,0.90067,1928.4,1928.0,0.45319894]
[1617286096188,0.90067,1928.4,1928.0,10.0011]
[1617286096611,0.90067,1928.4,1928.0,9.6111]
[1617286097115,0.39,1928.3,1928.0,9.60465]
[1617286097320,0.88685,1928.4,1928.0,10.00465]
[1617286097614,0.84956,1928.4,1928.0,10.00465]
[1617286098015,0.84956,1928.4,1928.0,9.58834]
[1617286098516,0.4,1928.3,1928.0,9.58834]
[1617286098716,0.4,1928.3,1928.0,9.56696]
[1617286099657,0.4,1928.2,1928.0,9.4278]
[1617286099845,0.4,1928.2,1928.0,9.37402]
[1617286100141,2.0755719,1928.3,1928.0,9.37402]
[1617286100142,0.39,1928.1,1928.0,9.37402]
[1617286100643,2.03590868,1928.3,1928.0,9.37402]
[1617286100943,2.03590868,1928.3,1928.0,9.34662]
[1617286101344,2.03590868,1928.3,1927.7,10.44037894]
[1617286101546,1.63590868,1928.3,1927.7,10.44037894]
[1617286101744,1.63590868,1928.3,1927.8,0.41]
[1617286101981,1.63590868,1928.3,1927.8,0.39596]
[1617286102182,2.02590868,1928.3,1927.7,14.37037894]
[1617286102584,0.4,1928.1,1927.7,13.89718]
[1617286102785,2.4758665,1928.1,1927.6,11.4721]
[1617286102989,4.33365529,1928.1,1927.6,11.4721]
[1617286103186,7.78654,1927.9,1927.6,11.4721]
[1617286103686,2.5955101,1927.9,1927.6,11.4721]
[1617286103887,2.5955101,1927.9,1927.7,0.06319894]
[1617286104086,2.5955101,1927.9,1927.5,14.183]
[1617286105089,2.5955101,1927.9,1927.5,15.30775]
[1617286106191,2.5955101,1927.9,1927.5,15.27515]
[1617286106389,2.5955101,1927.9,1927.6,0.38]
[1617286106589,2.5949627,1928.3,1927.7,0.44319894]
[1617286106891,2.5949627,1928.3,1927.7,0.38]
[1617286107114,2.5949627,1928.3,1927.8,0.06319894]
[1617286108221,2.5949627,1928.3,1928.0,0.371]
[1617286108415,2.5949627,1928.3,1928.0,8.11606]
[1617286109514,2.5949627,1928.3,1928.0,0.33337]
[1617286109942,2.9949627,1928.3,1928.0,0.33337]
[1617286111042,3.1349627,1928.3,1928.0,0.33337]
[1617286112245,0.38,1928.2,1927.6,0.45319894]
[1617286112474,0.14,1928.1,1927.7,0.28]
[1617286112669,7.92512,1928.1,1927.7,0.28]
[1617286113069,15.92512,1928.1,1927.7,0.28]
[1617286113270,7.78512,1928.1,1927.8,0.308]
[1617286113473,16.18512,1928.1,1927.8,0.308]
[1617286113870,16.32512,1928.1,1927.8,0.308]
[1617286114272,2.076032,1928.0,1927.8,0.308]
[1617286114472,2.076032,1928.0,1927.8,0.698]
[1617286114672,2.076032,1928.0,1927.9,0.4]
[1617286115097,0.84956,1928.4,1927.8,0.308]
[1617286115295,0.14,1928.3,1927.9,0.06319894]
[1617286115495,0.14,1928.3,1928.0,7.7827]
[1617286115694,2.0754632,1928.2,1928.0,7.7827]
[1617286115902,0.84956,1928.4,1927.9,1.2996]
[1617286116099,0.84956,1928.4,1928.1,0.301]
[1617286116297,0.84956,1928.4,1928.3,13.16]
[1617286116498,0.84956,1928.4,1928.3,20.53146]
[1617286116696,0.84956,1928.4,1928.3,31.76656]
[1617286121046,0.84956,1928.4,1928.3,32.15656]
[1617286122342,0.84956,1928.4,1928.3,31.76656]
[1617286122642,0.84956,1928.4,1928.3,19.01656]
[1617286123672,0.84956,1928.4,1928.3,19.41656]
[1617286124673,0.84956,1928.4,1928.3,19.01656]
[1617286126488,0.84956,1928.4,1928.3,20.0454402]
[1617286127691,0.84956,1928.4,1928.3,20.4554402]
[1617286128118,6e-05,1928.4,1928.3,20.4554402]
[1617286128413,6e-05,1928.4,1928.3,24.91656]
[1617286128612,6e-05,1928.4,1928.3,19.01656]
[1617286128816,6e-05,1928.4,1928.3,10.9551]
[1617286129017,0.14,1928.3,1928.1,1.2]
[1617286129318,0.14,1928.3,1927.9,30.0]
[1617286129319,27.4,1928.1,1927.9,22.549123]
[1617286129517,27.4,1928.1,1927.9,20.357113]
[1617286129518,32.24,1928.1,1927.9,20.357113]
[1617286129718,35.2428,1928.0,1927.9,0.8412639]
[1617286129917,35.2428,1928.0,1927.7,20.8153385]
[1617286129918,41.94058879,1928.0,1927.7,20.8153385]
[1617286130118,5.01,1927.8,1926.8,10.0]
[1617286130421,3.89493,1927.1,1926.8,3.84155]
[1617286130621,3.89493,1927.1,1926.2,0.06319894]
[1617286130622,5.01,1926.9,1926.2,0.06319894]
[1617286130847,0.4,1926.6,1926.2,0.06319894]
[1617286131050,2.2795,1926.7,1926.1,41.9031]
[1617286131245,2.2795,1926.7,1926.3,0.06319894]
[1617286131447,2.2795,1926.7,1926.3,0.39]
[1617286131646,2.2795,1926.7,1926.3,14.93]
[1617286131848,2.2795,1926.7,1926.6,0.4]
[1617286132045,11.52931335,1927.3,1926.6,30.4]
[1617286132245,5.01,1927.1,1926.8,0.41]
[1617286132547,1.2,1927.0,1926.7,0.39]
[1617286132744,1.2,1927.0,1926.6,4.54]
[1617286133045,1.2,1927.0,1926.6,7.78806]
[1617286133690,1.2,1927.0,1926.5,0.06319894]
[1617286134388,1.2,1927.0,1926.4,10.76362]
[1617286134587,1.2,1927.0,1926.5,0.06319894]
[1617286134787,1.59,1927.0,1926.5,0.06319894]
[1617286134987,1.59,1927.0,1926.4,10.76362]
[1617286135189,0.4,1926.8,1926.3,0.06319894]
[1617286135490,9.61,1926.8,1926.2,0.06319894]
[1617286135690,5.01,1926.6,1926.2,0.06319894]
[1617286135899,0.38,1926.4,1926.1,26.5231]
[1617286136099,3.58976215,1926.5,1926.1,26.5231]
[1617286136296,1.2,1926.5,1926.1,26.5231]
[1617286136495,1.2,1926.5,1926.1,12.24]
[1617286136696,1.2,1926.5,1926.2,0.38]
[1617286137095,2.23981312,1926.5,1926.1,12.24]
[1617286137296,5.38948151,1926.4,1926.1,22.62727]
[1617286137496,1.58,1926.3,1926.1,12.24]
[1617286137697,12.21,1926.2,1926.1,12.24]
[1617286137898,13.41,1926.2,1926.1,12.24]
[1617286138502,16.41,1926.2,1926.1,12.24]
[1617286138923,16.8,1926.2,1926.1,12.24]
[1617286139125,24.8,1926.2,1926.1,1.0]
[1617286139423,24.95041254,1926.2,1926.1,1.0]
[1617286139923,9.75041254,1926.2,1926.1,1.0]
[1617286140123,17.75041254,1926.2,1926.1,1.0]
[1617286141650,25.83211254,1926.2,1926.1,1.0]
[1617286142149,43.68211254,1926.2,1926.1,1.0]
[1617286142952,29.98211254,1926.2,1926.1,1.0]
[1617286143151,22.83211254,1926.2,1926.1,1.0]
[1617286143352,26.1576804,1926.2,1926.1,1.0]
[1617286143550,18.1576804,1926.2,1926.1,1.0]
[1617286143753,10.8160804,1926.2,1926.1,1.0]
[1617286143968,20.5560804,1926.2,1926.1,1.0]
[1617286145075,5.8060804,1926.2,1926.1,1.0]
[1617286145677,5.4160804,1926.2,1926.1,1.0]
[1617286145981,6.12156371,1926.7,1926.1,28.69768504]
[1617286146183,6.12156371,1926.7,1926.1,40.76248504]
[1617286146379,1.2,1926.6,1926.4,8.17949]
[1617286146598,1.2,1926.6,1926.4,7.78949]
[1617286146798,1.2,1926.6,1926.1,13.0648]
[1617286147098,1.2,1926.6,1926.4,5.0]
[1617286147501,27.4,1926.5,1925.7,11.19196894]
[1617286147706,31.2,1926.4,1925.6,0.9]
[1617286147907,31.2,1926.4,1925.1,1.0]
[1617286147908,2.09406894,1926.3,1925.1,1.0]
[1617286148204,2.09406894,1926.3,1925.1,0.72893]
[1617286148205,0.09406894,1926.1,1925.1,0.72893]
[1617286148402,0.09406894,1925.9,1925.1,0.72893]
[1617286148611,0.09406894,1925.5,1925.1,0.72893]
[1617286148810,25.78,1925.2,1925.1,0.72893]
[1617286149007,25.78,1925.2,1924.6,1.02004]
[1617286149008,3.95406894,1925.1,1924.6,1.02004]
[1617286149225,20.6,1924.7,1924.6,1.02004]
[1617286149423,37.8309,1924.7,1924.6,1.02004]
[1617286149622,17.2309,1924.7,1924.6,1.02004]
[1617286149927,9.2309,1924.7,1924.6,1.02004]
[1617286150124,17.2309,1924.7,1924.6,1.02004]
[1617286150323,19.70780386,1924.7,1924.6,1.02004]
[1617286150924,34.20780386,1924.7,1924.6,1.02004]
[1617286151540,34.58780386,1924.7,1924.6,1.02004]
[1617286152044,34.58780386,1924.7,1924.6,0.97004]
[1617286152045,20.08780386,1924.7,1924.6,0.97004]
[1617286152250,19.70780386,1924.7,1924.6,0.97004]
[1617286152445,9.2309,1924.7,1924.6,0.97004]
[1617286152645,8.21,1924.7,1924.6,0.97004]
[1617286152846,12.75,1924.7,1924.6,0.97004]
[1617286153046,8.21,1924.7,1924.6,0.97004]
[1617286153246,3.2,1924.7,1924.6,0.97004]
[1617286153855,11.7,1924.7,1924.6,0.97004]
[1617286154050,12.11,1924.7,1924.6,0.97004]
[1617286154372,18.5676,1924.7,1924.6,0.97004]
[1617286154574,18.5676,1924.7,1924.4,0.03]
[1617286154575,32.11,1924.5,1924.4,0.03]
[1617286154774,32.11,1924.5,1924.2,0.04]
[1617286154775,18.12402654,1924.3,1924.2,0.04]
[1617286154977,20.34402654,1924.3,1924.2,0.04]
[1617286155177,23.54402654,1924.3,1924.2,0.04]
[1617286155573,31.48209381,1924.3,1924.2,0.04]
[1617286155978,39.48209381,1924.3,1924.2,0.04]
[1617286156473,38.28209381,1924.3,1924.2,0.04]
[1617286156780,40.47809381,1924.3,1924.2,0.04]
[1617286156991,40.49609381,1924.3,1924.2,0.04]
[1617286157199,40.49609381,1924.3,1924.1,1.0]
[1617286157396,40.49609381,1924.3,1924.0,0.01]
[1617286157397,27.81,1923.7,1923.6,1.0]
[1617286157600,45.2823,1923.7,1923.6,1.0]
[1617286157793,46.23776727,1923.7,1923.6,0.7728]
[1617286157994,0.41,1923.4,1923.1,1.0]
[1617286158194,2.0,1923.3,1923.1,0.95]
[1617286158393,7.9574,1923.3,1923.1,0.95]
[1617286159196,10.1,1923.2,1923.1,0.95]
[1617286159400,17.11,1923.2,1923.1,0.95]
[1617286159825,12.1,1923.2,1923.1,0.95]
[1617286160022,7.01,1923.2,1923.1,0.95]
[1617286160233,2.0,1923.2,1923.1,0.95]
[1617286160826,5.9574,1923.3,1923.1,29.01164421]
[1617286160827,2.0,1923.3,1923.1,29.01164421]
[1617286161027,1.0329644,1923.6,1923.1,34.97164421]
[1617286161028,2.0,1923.2,1923.1,34.97164421]
[1617286161524,2.0,1923.2,1923.1,32.85368]
[1617286161724,2.0,1923.2,1923.1,15.00368]
[1617286163146,2.0,1923.2,1923.1,18.90435]
[1617286163951,2.0,1923.4,1923.1,18.90435]
[1617286164148,2.0,1923.2,1923.1,11.10067]
[1617286164749,2.0,1923.2,1923.1,38.50067]
[1617286164972,1.0329644,1923.6,1923.1,40.35197]
[1617286164973,0.95546727,1923.4,1923.1,40.35197]
[1617286165171,7.16878914,1924.2,1923.3,27.79]
[1617286165371,7.16878914,1924.2,1923.5,2.01521632]
[1617286165372,1.04501114,1924.2,1923.5,2.01521632]
[1617286165768,1.04501114,1924.2,1923.5,11.77291632]
[1617286165974,1.04501114,1924.2,1923.7,6.3591383]
[1617286166173,4.4829322,1924.2,1923.8,7.79887]
[1617286166371,4.4829322,1924.2,1924.0,0.39]
[1617286166372,1.95460044,1924.2,1924.0,0.39]
[1617286166871,1.95460044,1924.2,1923.8,3.36]
[1617286167075,1.95460044,1924.2,1924.0,7.79958]
[1617286167272,1.95460044,1924.2,1923.8,3.36]
[1617286167497,1.95460044,1924.2,1923.9,0.4]
[1617286167996,1.95460044,1924.2,1923.8,3.36]
[1617286168198,5.01,1924.1,1923.9,7.80007]
[1617286168499,5.9695893,1924.1,1923.7,10.3985]
[1617286168898,6.3495893,1924.1,1923.7,10.3985]
[1617286169097,5.01,1924.0,1923.7,10.3985]
[1617286169298,5.9695893,1924.1,1923.7,10.3985]
[1617286169497,5.01,1924.0,1923.7,10.3985]
[1617286169801,5.9695893,1924.0,1923.7,10.3985]
[1617286170221,0.9595893,1924.0,1923.7,10.3985]
[1617286170424,0.9595893,1924.0,1923.9,0.4]
[1617286170623,0.9595893,1924.0,1923.8,0.4]
[1617286170824,0.9595893,1924.0,1923.9,0.38]
[1617286171423,0.9595893,1924.0,1923.9,8.1798]
[1617286171724,0.9595893,1924.0,1923.9,16.5798]
[1617286171922,0.9595893,1924.0,1923.9,8.1798]
[1617286172122,0.9595893,1924.0,1923.9,11.7598]
[1617286173347,0.9595893,1924.0,1923.9,7.7998]
[1617286173548,1.3395893,1924.0,1923.7,10.3985]
[1617286174350,6.3495893,1924.0,1923.7,10.3985]
[1617286174953,5.9695893,1924.0,1923.7,10.7985]
[1617286175148,0.9595893,1924.0,1923.7,10.7985]
[1617286179122,0.9595893,1924.0,1923.7,12.47490906]
[1617286179324,3.43792106,1924.0,1923.7,5.49640906]
[1617286179534,0.39,1923.9,1922.7,20.2519]
[1617286179727,0.39,1923.9,1923.2,0.4]
[1617286179728,7.86833176,1923.8,1923.2,0.4]
[1617286180032,7.86833176,1923.8,1923.1,0.85]
[1617286180033,5.10406894,1923.7,1923.1,0.85]
[1617286180229,5.01,1923.6,1923.1,0.85]
[1617286180427,12.81332,1923.7,1923.1,0.85]
[1617286180626,1.03753918,1923.6,1923.1,0.85]
[1617286181331,5.39,1923.5,1923.1,0.85]
[1617286181628,7.86833176,1923.5,1923.1,0.85]
[1617286181827,9.2,1923.2,1923.1,0.85]
[1617286182029,18.91303176,1923.2,1923.1,0.85]
[1617286182230,23.92303176,1923.2,1923.1,0.85]
[1617286182832,30.04660871,1923.2,1923.1,0.8]
[1617286183253,30.04660871,1923.2,1922.8,0.0082]
[1617286183254,0.09406894,1923.1,1922.8,0.0082]
[1617286183551,51.82953976,1923.2,1922.6,1.0]
[1617286183552,35.78,1922.9,1922.6,1.0]
[1617286183751,15.41,1922.7,1922.6,1.0]
[1617286184051,15.41,1922.7,1922.2,0.02004]
[1617286184052,19.95,1922.6,1922.2,0.02004]
[1617286184353,2.27158722,1922.5,1922.2,0.02004]
[1617286184651,4.82,1922.4,1922.2,0.02004]
[1617286184852,42.20705132,1922.3,1922.2,0.02004]
[1617286185051,55.02155132,1922.3,1922.2,0.02004]
[1617286185355,58.36176934,1922.3,1922.2,0.02004]
[1617286185550,58.36176934,1922.3,1922.1,2.0]
[1617286185551,31.21,1922.2,1922.1,1.97004]
[1617286185751,31.21,1922.2,1922.1,1.92004]
[1617286185752,36.05,1922.2,1922.1,1.92004]
[1617286186179,31.21,1922.2,1922.1,1.92004]
[1617286186380,40.82,1922.2,1922.1,1.92004]
[1617286186678,40.82,1922.2,1922.1,0.67004]
[1617286186878,35.82,1922.2,1922.1,0.67004]
[1617286187080,35.82,1922.2,1921.1,2.0]
[1617286187081,10.0,1922.0,1921.1,2.0]
[1617286187281,10.0,1922.0,1921.1,2.4]
[1617286187282,0.09406894,1921.9,1921.1,2.4]
[1617286187580,12.85,1921.7,1921.6,1.9]
[1617286187781,12.85,1921.7,1921.6,1.85]
[1617286187985,1.2,1921.7,1921.6,1.85]
[1617286188385,6.6,1921.7,1921.6,1.85]
[1617286188605,40.45460536,1921.7,1921.6,1.85]
[1617286188803,45.13606671,1921.7,1921.6,1.85]
[1617286189006,44.74606671,1921.7,1921.6,1.85]
[1617286189305,22.81419466,1921.7,1921.6,1.85]
[1617286189507,22.67419466,1921.7,1921.6,1.85]
[1617286189805,22.67419466,1921.7,1921.6,2.13]
[1617286189806,16.70460536,1921.7,1921.6,2.13]
[1617286190108,7.32590536,1921.7,1921.6,2.08]
[1617286190917,7.32590536,1921.7,1921.6,2.47]
[1617286191332,7.32590536,1921.7,1921.6,2.08]
[1617286191532,1.2,1921.7,1921.6,2.08]
[1617286191733,1.2,1921.9,1921.6,2.48]
[1617286191936,1.2,1921.9,1921.7,0.336]
[1617286192532,1.2,1921.9,1921.7,0.186]
[1617286192737,2.00372522,1921.8,1921.6,1.8]
[1617286192937,8.25,1921.7,1921.6,1.94]
[1617286193139,9.0843,1921.9,1921.6,1.94]
[1617286193339,8.7043,1921.9,1921.6,1.94]
[1617286193749,12.7757523,1921.9,1921.6,1.94]
[1617286193949,12.7757523,1921.9,1921.6,1.8]
[1617286194548,12.7757523,1921.9,1921.7,0.4]
[1617286194752,9.45,1921.8,1920.6,40.083558]
[1617286194953,9.45,1921.8,1921.2,0.14]
[1617286194954,0.287,1921.6,1921.2,0.14]
[1617286195151,0.287,1921.6,1921.0,11.12267]
[1617286195351,9.45,1921.8,1921.0,11.12267]
[1617286195550,1.24165944,1921.6,1921.1,2.38]
[1617286195756,1.24165944,1921.6,1921.2,0.41]
[1617286195953,1.2,1921.6,1921.2,0.41]
[1617286196150,10.23106894,1921.8,1921.5,0.38]
[1617286196151,9.45,1921.8,1921.5,0.38]
[1617286196677,9.45,1921.8,1921.2,7.8091]
[1617286196678,8.7438893,1921.9,1921.4,0.38]
[1617286196878,1.48,1921.9,1921.4,0.38]
[1617286197078,1.48,1921.9,1921.2,7.8091]
[1617286197079,5.01,1921.7,1921.2,7.8091]
[1617286197279,5.304,1921.8,1921.3,0.41]
[1617286197480,0.4,1921.7,1921.2,7.8091]
[1617286197685,5.311,1921.6,1921.1,2.39]
[1617286197881,0.691,1921.6,1921.1,2.0]
[1617286198285,5.701,1921.6,1921.1,2.0]
[1617286198577,6.901,1921.6,1921.1,2.0]
[1617286198778,6.21,1921.6,1921.2,0.39]
[1617286199226,6.0591,1921.6,1921.2,0.39]
[1617286199426,6.0591,1921.6,1921.3,0.4]
[1617286199829,1.2,1921.6,1921.3,0.4]
[1617286200330,1.2,1921.6,1921.1,2.0]
[1617286200529,1.2,1921.6,1921.2,0.4]